bitfinex/quotes_ETHUSD_20260310
["timestamp","ask_amount","ask_price","bid_price","bid_amount"]
[1773183329259,0.001,2027.4,2027.2,1.54297799]
[1773183332953,0.47893257,2027.4,2027.1,4.93299968]
[1773183333147,0.47893257,2027.4,2027.1,5.24274958]
[1773183334561,0.001,2027.2,2027.1,1.54303883]
[1773183334791,0.47893257,2027.4,2027.1,1.54303883]
[1773183334946,0.001,2027.4,2027.2,0.3097499]
[1773183335146,0.47793257,2027.5,2027.2,0.3097499]
[1773183335768,0.47893257,2027.6,2027.2,0.3097499]
[1773183337043,0.47893257,2027.8,2027.4,1.54285634]
[1773183338196,0.47893257,2027.8,2027.4,1.23310644]
[1773183340566,0.47793257,2027.7,2027.4,1.23310644]
[1773183344792,0.47793257,2028.3,2027.6,0.3097499]
[1773183344970,0.47793257,2028.3,2027.9,0.3097499]
[1773183345166,0.47893257,2028.2,2027.6,1.545]
[1773183345476,0.47893257,2028.2,2027.4,1.23310644]
[1773183345477,0.47793257,2027.8,2027.4,1.23308561]
[1773183345976,0.47793257,2027.8,2027.3,1.5428679]
[1773183346197,0.47893257,2027.7,2027.3,1.5428679]
[1773183346382,0.47793257,2027.7,2027.3,1.23316168]
[1773183346774,0.47793257,2027.7,2027.3,1.23426168]
[1773183346975,0.001,2027.5,2027.3,1.23426168]
[1773183347189,0.47893257,2027.5,2027.3,1.23426168]
[1773183350102,0.47893257,2027.5,2027.0,1.23439265]
[1773183350103,0.49787853,2027.4,2027.0,1.23439265]
[1773183350603,0.001,2027.3,2027.1,0.3108499]
[1773183350805,0.001,2027.4,2027.1,0.3108499]
[1773183351576,0.001,2027.4,2027.2,1.23322809]
[1773183352396,0.001,2027.5,2027.2,1.54407799]
[1773183352575,0.001,2027.5,2027.3,0.3108499]
[1773183354001,0.001,2027.5,2027.3,1.54396291]
[1773183354482,0.001,2027.5,2027.3,1.23311301]
[1773183354685,0.001,2027.5,2027.3,1.54396291]
[1773183354872,0.001,2027.5,2027.4,0.3108499]
[1773183356504,0.001,2027.5,2027.3,0.3108499]
[1773183358678,0.001,2027.5,2027.4,1.23310644]
[1773183359400,0.001,2027.5,2027.3,1.23311881]
[1773183359603,0.49887853,2027.5,2027.3,1.23311881]
[1773183360299,0.49887853,2027.5,2027.3,1.23421881]
[1773183361096,0.49787853,2027.4,2027.0,1.5491]
[1773183361296,0.49787853,2027.4,2027.0,0.0011]
[1773183361494,0.49787853,2027.4,2027.0,1.23444929]
[1773183363007,1.73100826,2027.4,2027.0,1.54539919]
[1773183363510,0.49787853,2027.3,2027.0,1.54539919]
[1773183371512,0.49787853,2027.3,2027.2,0.0011]
[1773183373617,1.73104579,2027.3,2027.2,0.0011]
[1773183373788,0.49787853,2027.2,2027.0,0.0011]
[1773183379852,1.73111046,2027.2,2027.0,0.0011]
[1773183380196,0.49787853,2027.2,2027.0,0.0011]
[1773183384336,0.46133357,2027.1,2027.0,0.0011]
[1773183384934,0.46133357,2027.1,2026.7,1.54774567]
[1773183385137,0.001,2027.0,2026.8,0.3131499]
[1773183389538,0.001,2027.0,2026.8,1.54661159]
[1773183390445,0.001,2027.0,2026.7,1.23458757]
[1773183390446,0.46233357,2027.0,2026.7,1.23458757]
[1773183390641,0.001,2027.0,2026.7,1.54773747]
[1773183390835,0.46133357,2027.3,2026.7,1.54773747]
[1773183391813,0.46133357,2027.2,2026.7,1.54773747]
[1773183392431,0.46133357,2027.2,2026.7,1.23462965]
[1773183397046,0.46133357,2027.1,2026.9,0.0011]
[1773183397245,0.46233357,2027.0,2026.9,0.0011]
[1773183401343,0.46133357,2027.3,2026.9,0.0011]
[1773183401544,0.46133357,2027.3,2026.9,0.46224739]
[1773183402245,0.46133357,2027.3,2026.9,0.0011]
[1773183406654,1.23322809,2027.2,2026.9,0.0011]
[1773183406826,1.69456166,2027.2,2026.9,0.0011]
[1773183407349,0.46133357,2027.2,2026.9,0.0011]
[1773183407539,0.46133357,2027.2,2026.9,0.47587869]
[1773183408253,0.46133357,2027.2,2026.9,0.0011]
[1773183408449,0.46133357,2027.2,2026.7,0.47587869]
[1773183408627,0.4858915,2027.0,2026.7,0.0011]
[1773183409429,0.4858915,2027.0,2026.9,0.0011]
[1773183409629,0.4858915,2027.0,2026.7,0.0011]
[1773183413757,0.4858915,2027.0,2026.7,1.23463234]
[1773183417161,0.001,2027.1,2026.8,0.47661606]
[1773183417550,0.48010269,2027.1,2026.8,0.47661606]
[1773183420166,0.48010269,2027.1,2026.8,1.71007553]
[1773183422172,0.48010269,2027.1,2026.8,1.23345947]
[1773183422383,0.48010269,2027.1,2026.9,0.0011]
[1773183422669,0.001,2026.9,2026.8,1.23345947]
[1773183423268,0.001,2026.9,2026.7,1.71120759]
[1773183430160,0.001,2026.9,2026.7,1.71123785]
[1773183437065,0.48010269,2026.9,2026.6,0.0011]
[1773183439270,0.48010269,2026.9,2026.6,0.47144242]
[1773183439470,0.001,2026.9,2026.6,0.47144242]
[1773183439967,0.47452867,2026.9,2026.6,0.47144242]
[1773183440168,0.47452867,2026.9,2026.6,1.7050125]
[1773183443304,0.001,2026.9,2026.7,0.47034242]
[1773183445505,0.001,2026.9,2026.7,1.70385987]
[1773183446704,0.001,2026.9,2026.8,0.0011]
[1773183447101,0.001,2026.9,2026.6,0.0011]
[1773183447424,0.47452867,2026.9,2026.6,1.23468873]
[1773183447602,0.47452867,2026.9,2026.6,0.0011]
[1773183450904,0.47352867,2026.7,2026.4,0.0011]
[1773183451104,0.47352867,2026.7,2026.4,1.23480983]
[1773183451405,0.47352867,2026.8,2026.4,1.23480983]
[1773183451592,1.2334582,2026.9,2026.4,0.47144242]
[1773183451903,0.001,2026.8,2026.4,1.70515156]
[1773183452493,0.001,2026.8,2026.4,0.47144242]
[1773183452806,0.001,2026.8,2026.4,1.70515561]
[1773183454097,0.001,2026.8,2026.5,0.5]
[1773183454485,0.001,2026.8,2026.5,1.73361033]
[1773183455110,0.001,2026.8,2026.6,0.5]
[1773183456813,0.001,2026.8,2026.7,1.73353234]
[1773183457195,0.001,2027.1,2026.8,0.4995]
[1773183457501,0.001,2027.1,2026.8,0.01832624]
[1773183458312,0.47452867,2027.1,2026.8,0.01832624]
[1773183459205,0.47452867,2027.1,2026.8,1.25177618]
[1773183461319,0.001,2027.1,2026.9,0.47034242]
[1773183463794,0.001,2027.1,2026.9,1.7037027]
[1773183465013,0.47352867,2027.3,2027.0,0.47034242]
[1773183465808,0.47352867,2027.3,2027.0,1.70368428]
[1773183467518,0.001,2027.5,2027.0,1.70368428]
[1773183467723,0.48217376,2027.4,2027.1,0.49032482]
[1773183468018,0.48217376,2027.4,2027.0,1.72366668]
[1773183472027,0.001,2027.5,2027.2,0.45497598]
[1773183473130,0.001,2027.5,2027.2,1.68816927]
[1773183474125,0.001,2027.5,2027.3,0.45497598]
[1773183474627,0.47228625,2027.4,2027.0,1.23330366]
[1773183475010,0.47228625,2027.4,2026.9,1.23336997]
[1773183475508,0.47228625,2027.3,2026.8,1.23346775]
[1773183479935,0.47228625,2027.2,2026.8,1.23346775]
[1773183483126,0.47228625,2027.2,2026.8,0.45497598]
[1773183484123,0.47228625,2027.2,2027.0,0.0011]
[1773183484333,0.47328625,2027.2,2027.0,0.0011]
[1773183490344,0.47328625,2027.2,2027.0,1.23444977]
[1773183495841,0.001,2027.2,2027.0,1.68942575]
[1773183498257,0.001,2027.2,2027.1,0.45497598]
[1773183498556,0.001,2027.5,2027.1,0.45497598]
[1773183498761,0.001,2027.5,2027.2,1.68820407]
[1773183499060,0.47328625,2027.5,2027.2,1.68820407]
[1773183500142,0.001,2027.5,2027.3,0.49161772]
[1773183501260,0.001,2027.5,2027.4,1.23310644]
[1773183501460,0.001,2027.5,2027.3,5.42419283]
[1773183502256,0.001,2027.5,2027.4,1.23310644]
[1773183503256,0.001,2027.5,2027.4,1.72472416]
[1773183504861,0.001,2027.6,2027.5,0.49161772]
[1773183505360,0.001,2027.6,2027.5,1.72466334]
[1773183509281,0.001,2027.6,2027.3,0.49161772]
[1773183509954,0.001,2027.6,2027.4,0.0011]
[1773183510143,0.001,2027.6,2027.4,0.49271772]
[1773183511571,0.001,2027.6,2027.5,1.23304562]
[1773183522564,0.001,2027.6,2027.5,1.23414562]
[1773183523980,0.001,2027.6,2027.5,1.72576334]
[1773183526457,0.001,2027.6,2027.5,1.23414562]
[1773183526785,0.001,2027.6,2027.5,0.0011]
[1773183529080,0.001,2027.6,2027.5,1.23414562]
[1773183530986,0.001,2027.6,2027.5,1.71317948]
[1773183531188,0.48958819,2028.1,2027.6,0.47903386]
[1773183533590,0.48958819,2028.1,2027.7,1.232924]
[1773183533770,0.48958819,2028.1,2027.7,1.71195786]
[1773183534171,0.48958819,2028.4,2027.8,0.47903386]
[1773183534992,0.001,2027.9,2027.8,0.47903386]
[1773183535296,0.48958819,2028.3,2027.8,0.47903386]
[1773183536803,0.48958819,2028.3,2028.0,0.47903386]
[1773183538514,1.7221289,2028.4,2027.9,1.71183626]
[1773183538672,0.48958819,2028.3,2027.9,1.71183626]
[1773183544777,0.48958819,2028.3,2028.0,0.47903386]
[1773183546706,0.48958819,2028.3,2027.8,1.71189706]
[1773183546913,0.48958819,2028.3,2027.9,0.47903386]
[1773183547079,0.48958819,2028.3,2028.1,0.0011]
[1773183547280,6.96958819,2028.3,2028.1,0.0011]
[1773183553590,6.48,2028.3,2028.1,0.48013386]
[1773183553989,0.48958819,2028.5,2028.1,0.0011]
[1773183556315,0.48958819,2028.2,2027.7,0.0011]
[1773183557203,0.48958819,2028.0,2027.7,0.0011]
[1773183557783,0.48958819,2028.0,2027.5,0.0011]
[1773183558218,0.48958819,2027.8,2027.5,0.0011]
[1773183560289,0.46936408,2027.7,2027.5,0.0011]
[1773183562889,0.46936408,2027.8,2027.5,0.0011]
[1773183564597,0.46936408,2027.8,2027.5,0.46712788]
[1773183570232,0.46936408,2027.8,2027.5,1.70017317]
[1773183571349,0.46936408,2027.8,2027.5,0.46712788]
[1773183572059,6.89639609,2027.8,2027.5,0.46712788]
[1773183572559,6.89639609,2027.8,2027.7,0.0011]
[1773183579140,8.12925929,2027.8,2027.7,0.0011]
[1773183579770,6.42703201,2027.8,2027.7,0.0011]
[1773183580233,1.2328508,2027.9,2027.7,0.0011]
[1773183581146,1.70221488,2027.9,2027.7,0.0011]
[1773183581347,6.42703201,2027.8,2027.7,0.0011]
[1773183584471,7.65989521,2027.8,2027.7,0.0011]
[1773183586375,6.42703201,2027.8,2027.7,0.0011]
[1773183586776,7.65989521,2027.8,2027.7,0.0011]
[1773183587081,0.48036408,2028.0,2027.7,0.0011]
[1773183587259,0.46936408,2027.9,2027.7,0.0011]
[1773183590578,0.48205016,2028.0,2027.7,0.47840519]
[1773183590785,0.47105016,2027.9,2027.5,0.0011]
[1773183591279,0.47105016,2027.9,2027.5,1.23414368]
[1773183591686,0.47105016,2027.8,2027.5,1.23414368]
[1773183592588,0.47105016,2027.8,2027.5,1.71144887]
[1773183592751,1.2328396,2027.9,2027.6,0.47730519]
[1773183592752,1.23280421,2027.9,2027.6,0.47730519]
[1773183592956,1.24378986,2028.0,2027.6,0.47730519]
[1773183593153,1.71484002,2028.0,2027.6,0.47730519]
[1773183593355,0.47105016,2027.9,2027.5,1.23414368]
[1773183593555,0.47105016,2027.9,2027.5,1.71144887]
[1773183594697,1.24375186,2028.0,2027.6,0.47730519]
[1773183594989,0.47105016,2027.9,2027.6,0.47730519]
[1773183595166,0.48205016,2028.0,2027.6,0.47730519]
[1773183595561,0.011,2028.0,2027.6,0.47730519]
[1773183595767,0.011,2028.0,2027.5,0.0011]
[1773183595768,0.47105016,2028.3,2027.8,0.47730519]
[1773183596167,1.70358672,2028.4,2027.8,0.47730519]
[1773183596567,1.70358672,2028.4,2028.0,0.47730519]
[1773183596789,0.33228495,2028.6,2028.0,0.47730519]
[1773183596790,2.03572157,2028.6,2028.3,0.47730519]
[1773183597086,2.03572157,2028.6,2028.0,0.97325138]
[1773183597087,0.47105016,2028.5,2028.0,0.47730519]
[1773183599390,0.47105016,2028.4,2028.1,1.23268083]
[1773183599689,0.47105016,2028.4,2028.0,0.47730519]
[1773183599893,0.47105016,2028.4,2027.9,1.71010373]
[1773183600494,0.47105016,2028.4,2027.8,1.2328412]
[1773183600868,0.47105016,2028.4,2027.8,1.71014639]
[1773183601264,0.47105016,2028.2,2027.8,0.47730519]
[1773183601464,0.47105016,2028.2,2027.7,1.71132673]
[1773183601666,2.03571615,2028.6,2028.0,0.97325138]
[1773183601864,2.03571615,2028.6,2028.1,0.47730519]
[1773183601865,0.33228495,2028.6,2028.1,0.47730519]
[1773183602090,0.47105016,2029.1,2028.6,0.47730519]
[1773183602375,0.47105016,2029.0,2028.6,0.47730519]
[1773183603386,0.47105016,2029.0,2028.2,1.597]
[1773183603387,0.47105016,2028.8,2028.4,0.47730519]
[1773183604591,0.47105016,2028.6,2027.9,3.30609769]
[1773183604889,0.47105016,2028.8,2028.0,0.47730519]
[1773183605487,0.47105016,2028.6,2028.2,0.47730519]
[1773183609110,1.7034462,2028.6,2028.2,0.47730519]
[1773183609399,1.7044462,2028.6,2028.2,0.47730519]
[1773183609971,0.47105016,2028.5,2028.1,1.23268083]
[1773183610180,0.47105016,2028.5,2028.1,1.70998602]
[1773183610997,0.47105016,2028.5,2028.1,1.23268083]
[1773183611198,0.47105016,2028.5,2028.2,0.47730519]
[1773183613602,0.001,2028.6,2028.2,0.47730519]
[1773183613976,6.69908217,2028.6,2028.2,0.47730519]
[1773183616387,7.93149714,2028.6,2028.2,0.47730519]
[1773183617309,7.93149714,2028.6,2028.2,1.70992497]
[1773183617806,7.93149714,2028.6,2028.2,0.47730519]
[1773183619301,7.93149714,2028.6,2028.2,1.70991986]
[1773183619906,6.22803201,2028.6,2028.3,0.47607728]
[1773183620133,1.72223983,2029.0,2028.4,0.41350142]
[1773183620806,0.49006469,2028.9,2028.4,0.41350142]
[1773183621710,0.49106469,2028.8,2028.5,1.23243776]
[1773183623009,0.49106469,2028.8,2028.4,1.64595401]
[1773183623986,0.49106469,2028.8,2028.5,0.41350142]
[1773183625087,0.001,2028.8,2028.5,0.41350142]
[1773183626101,0.001,2028.8,2028.6,0.41350142]
[1773183627513,0.001,2028.8,2028.5,1.23240905]
[1773183627514,6.02803201,2028.9,2028.7,0.41250142]
[1773183628588,6.02803201,2028.9,2028.7,1.64475835]
[1773183629015,6.02803201,2028.9,2028.8,0.41250142]
[1773183630513,0.88188164,2029.3,2028.6,5.90257819]
[1773183630713,0.39181695,2029.3,2029.1,0.41250142]
[1773183631088,0.49006469,2029.7,2029.1,0.41250142]
[1773183632512,1.72178237,2029.7,2029.2,1.23201261]
[1773183632716,1.72178237,2029.7,2029.3,0.41250142]
[1773183634101,0.001,2029.5,2029.3,0.41250142]
[1773183634617,0.001,2029.5,2029.4,1.64439261]
[1773183636414,0.49006469,2030.0,2029.4,1.64439261]
[1773183636615,1.72165245,2029.9,2029.5,0.41250142]
[1773183637113,0.49006469,2029.8,2029.5,0.41250142]
[1773183637823,0.49006469,2029.8,2029.1,1.23207333]
[1773183638120,0.49006469,2029.8,2029.2,0.38013369]
[1773183639324,0.49006469,2029.6,2029.2,1.61211651]
[1773183640723,0.49006469,2029.6,2029.2,1.6121141]
[1773183641723,0.48513713,2029.6,2029.2,1.6121141]
[1773183643999,0.48513713,2029.6,2029.3,0.38506125]
[1773183646199,0.48513713,2029.6,2029.3,1.61699519]
[1773183646409,0.48513713,2029.6,2029.3,1.61809519]
[1773183646738,0.001,2029.5,2029.3,1.61809519]
[1773183647427,0.61996937,2030.0,2029.3,2.20628532]
[1773183647724,1.231498,2030.1,2029.5,0.97325138]
[1773183647725,0.61996937,2030.1,2029.5,0.97325138]
[1773183647909,1.769,2030.4,2029.5,0.97325138]
[1773183647910,0.61996937,2030.2,2029.5,0.97325138]
[1773183648330,0.61996937,2030.2,2029.6,1.2317698]
[1773183648529,1.85137615,2030.2,2029.6,1.2317698]
[1773183648729,0.61996937,2030.2,2029.6,1.2317698]
[1773183650019,0.61996937,2030.1,2029.3,0.0011]
[1773183650330,0.61996937,2029.8,2029.3,1.23300418]
[1773183651029,0.61996937,2030.1,2029.3,2.20625556]
[1773183651607,0.61996937,2030.1,2029.3,1.23300418]
[1773183654505,0.61996937,2030.0,2029.3,1.23300418]
[1773183656331,1.23154881,2030.0,2029.3,1.23300418]
[1773183656535,0.61996937,2029.9,2029.3,1.23300418]
[1773183659442,0.61996937,2029.9,2029.5,0.001]
[1773183660025,0.61996937,2029.8,2029.5,0.001]
[1773183660228,0.62196937,2029.7,2029.5,0.001]
[1773183662345,0.61996937,2029.6,2029.5,0.001]
[1773183662745,0.002,2029.9,2029.5,0.001]
[1773183662938,10.21925599,2031.6,2030.2,0.97117013]
[1773183662939,0.61996937,2031.0,2030.2,0.97117013]
[1773183663132,1.23092072,2031.1,2030.4,1.35120075]
[1773183663133,0.47562274,2031.1,2030.4,1.35120075]
[1773183663439,0.47562274,2031.1,2030.5,0.38003062]
[1773183664342,0.47562274,2031.0,2030.6,1.2311632]
[1773183664824,0.47562274,2031.0,2030.5,1.61120439]
[1773183665022,0.47762274,2030.9,2030.5,1.61120439]
[1773183665222,0.47562274,2030.9,2030.5,1.61120439]
[1773183666224,0.002,2030.8,2030.6,0.38003062]
[1773183666431,0.002,2031.0,2030.6,1.35120075]
[1773183666629,5.28072654,2031.5,2031.0,0.38003062]
[1773183666630,0.35809114,2031.5,2031.0,0.38003062]
[1773183666835,0.35809114,2031.5,2030.5,1.23117377]
[1773183666836,0.47562274,2031.4,2030.8,0.38003062]
[1773183667634,0.35809114,2031.5,2030.8,0.38003062]
[1773183667934,1.70821792,2031.6,2030.8,0.38003062]
[1773183668139,0.47562274,2031.5,2030.8,0.38003062]
[1773183668858,0.47562274,2031.5,2031.0,0.38003062]
[1773183670948,1.70625795,2031.5,2031.0,1.61090533]
[1773183671353,0.47562274,2031.4,2031.0,1.61090533]
[1773183671523,0.47762274,2031.6,2031.1,0.38003062]
[1773183671726,1.70819486,2031.6,2031.1,0.38003062]
[1773183672258,0.002,2031.6,2031.4,0.38003062]
[1773183672680,0.47762274,2031.8,2031.4,0.38003062]
[1773183673120,0.002,2031.8,2031.5,1.61064839]
[1773183673453,0.002,2031.9,2031.5,1.61064839]
[1773183673454,0.002,2031.9,2031.6,0.38003062]
[1773183675179,0.002,2031.9,2031.7,1.61052724]
[1773183675454,18.8587325,2036.6,2031.9,0.37803062]
[1773183675455,0.47562274,2032.7,2031.9,0.37803062]
[1773183675655,0.47562274,2032.7,2031.8,0.97117013]
[1773183675656,0.47562274,2032.7,2032.2,0.37803062]
[1773183677252,1.70554245,2032.7,2032.2,1.60820068]
[1773183677879,0.47562274,2032.7,2032.2,1.60820068]
[1773183678080,0.35069481,2033.3,2032.4,0.37803062]
[1773183678287,0.47562274,2033.9,2033.2,2.42076795]
[1773183678568,0.47562274,2033.8,2032.7,0.45502828]
[1773183678964,0.47562274,2033.8,2032.8,0.45502828]
[1773183679359,0.48950268,2033.6,2032.8,0.45502828]
[1773183680250,0.48950268,2033.6,2032.6,0.48455793]
[1773183680386,0.48950268,2033.4,2032.4,0.48455793]
[1773183680692,0.48950268,2033.4,2032.2,0.48455793]
[1773183681480,1.22952835,2033.3,2032.4,0.48455793]
[1773183681682,0.48950268,2033.2,2032.4,0.48455793]
[1773183682890,0.48950268,2033.2,2032.1,5.00178445]
[1773183683092,0.48950268,2032.9,2031.8,0.48455793]
[1773183683399,0.48950268,2032.7,2031.8,0.48455793]
[1773183683622,1.22983077,2032.8,2031.2,0.48455793]
[1773183683623,0.48950268,2032.4,2031.2,0.48455793]
[1773183683915,0.48950268,2032.4,2031.3,0.48455793]
[1773183684183,1.716,2032.6,2031.0,5.67340825]
[1773183684184,0.48950268,2032.1,2031.0,5.67340825]
[1773183684960,0.48950268,2032.1,2031.0,3.95797446]
[1773183685878,0.48950268,2031.9,2031.0,3.95797446]
[1773183686201,0.48950268,2031.9,2031.0,5.18889201]
[1773183686769,0.48950268,2031.9,2031.3,0.001]
[1773183687880,0.48950268,2031.7,2031.0,3.95897446]
[1773183688472,0.48950268,2031.5,2031.0,3.81044731]
[1773183688778,0.48950268,2031.5,2031.0,3.75044731]
[1773183689289,0.48950268,2031.5,2030.4,1.23125036]
[1773183689462,0.48950268,2031.5,2030.5,0.48455793]
[1773183689794,0.48950268,2031.7,2030.7,0.48455793]
[1773183690291,0.48950268,2031.7,2030.9,0.48455793]
[1773183690292,1.23055719,2031.6,2030.9,0.48455793]
[1773183690474,1.72005987,2031.6,2030.9,0.48455793]
[1773183691059,1.72005987,2031.6,2030.8,1.23104195]
[1773183691466,1.72005987,2031.6,2030.8,1.71559988]
[1773183692168,1.23053613,2031.7,2030.9,0.48455793]
[1773183692695,1.23025441,2032.1,2031.2,0.48455793]
[1773183693667,1.71975709,2032.1,2031.2,0.48455793]
[1773183693862,1.23025441,2032.1,2031.2,0.48455793]
[1773183694294,1.23019387,2032.2,2031.4,0.48455793]
[1773183695382,0.48950268,2032.3,2031.4,0.48455793]
[1773183695715,1.71963925,2032.3,2031.4,0.48455793]
[1773183696082,0.48950268,2032.2,2031.4,0.48455793]
[1773183696577,1.71974528,2032.2,2031.6,0.48455793]
[1773183697370,1.71972772,2032.2,2031.6,0.48455793]
[1773183698099,0.48950268,2032.1,2031.3,1.71529183]
[1773183698471,1.23031496,2032.0,2031.3,1.71529183]
[1773183699499,1.71981764,2032.0,2031.3,1.71529183]
[1773183700502,0.48950268,2032.2,2031.4,0.48455793]
[1773183701698,1.749,2032.5,2031.5,0.48455793]
[1773183701699,0.48950268,2032.5,2031.5,0.48455793]
[1773183701895,2.05157922,2032.7,2031.5,0.48455793]
[1773183702101,2.05157922,2032.7,2031.9,0.48455793]
[1773183702299,0.48950268,2032.6,2031.9,0.48455793]
[1773183702503,1.71951498,2032.5,2031.7,1.71505455]
[1773183702692,0.002,2032.0,2031.8,0.48455793]
[1773183702912,0.002,2032.0,2031.6,1.71507362]
[1773183703621,0.002,2032.0,2031.7,0.48455793]
[1773183704921,0.002,2032.0,2031.8,1.23043606]
[1773183705103,0.002,2032.0,2031.7,1.71501454]
[1773183705511,0.002,2032.0,2031.7,1.23045661]
[1773183706025,2.05153537,2032.7,2032.0,0.48455793]
[1773183706544,1.71939933,2032.7,2032.0,0.48455793]
[1773183708822,1.71939933,2032.7,2032.0,1.71481616]
[1773183709719,1.22989665,2032.7,2032.1,0.48233418]
[1773183710121,1.70475984,2032.9,2032.1,0.48233418]
[1773183710843,0.47494601,2032.8,2032.2,1.23019387]
[1773183711024,0.47494601,2032.8,2032.1,1.71254257]
[1773183712920,1.70483728,2032.7,2032.1,1.71254257]
[1773183714748,0.47494601,2032.6,2031.8,0.48233418]
[1773183714923,0.47494601,2032.4,2031.8,1.71276546]
[1773183715648,0.47494601,2032.4,2031.8,1.71276202]
[1773183716532,1.2300123,2032.5,2032.2,0.001]
[1773183716734,0.002,2032.5,2032.2,0.001]
[1773183718549,0.002,2032.5,2032.2,0.48333418]
[1773183718951,7.40516845,2033.4,2032.2,0.48333418]
[1773183718952,1.767,2033.0,2032.3,0.48233418]
[1773183719154,1.22970984,2033.0,2032.5,0.48233418]
[1773183719353,1.70465585,2033.0,2032.4,1.712407]
[1773183719650,1.22970984,2033.0,2032.5,0.48233418]
[1773183720152,1.22968356,2033.1,2032.5,0.48233418]
[1773183720740,1.22968356,2033.1,2032.3,1.23011785]
[1773183720946,0.47494601,2033.0,2032.3,1.71246502]
[1773183721257,1.70471628,2032.9,2032.3,1.71246502]
[1773183721851,0.47494601,2032.8,2032.2,0.001]
[1773183723754,0.47494601,2032.6,2032.2,0.001]
[1773183723951,1.22989127,2032.7,2032.2,0.001]
[1773183725662,1.22989127,2032.7,2032.2,0.48333418]
[1773183726466,0.47494601,2033.2,2032.2,0.48333418]
[1773183726637,0.47494601,2033.2,2032.3,0.48233418]
[1773183726638,2.24694601,2033.2,2032.3,0.48233418]
[1773183727860,1.2296493,2033.1,2032.5,0.48233418]
[1773183728163,0.47494601,2033.0,2032.3,1.71241756]
[1773183729970,1.22977027,2032.9,2032.3,1.71241756]
[1773183730655,1.22977027,2032.9,2032.3,0.48233418]
[1773183731263,1.22977027,2032.9,2032.2,0.001]
[1773183731264,0.47494601,2032.8,2032.2,0.001]
[1773183731569,0.47494601,2032.8,2032.5,0.001]
[1773183731744,0.47494601,2032.8,2032.2,0.001]
[1773183732072,1.70483728,2032.7,2032.3,0.001]
[1773183732877,1.773,2032.6,2032.3,0.001]
[1773183733876,2.24794601,2032.6,2032.3,0.001]
[1773183734589,1.2300123,2032.5,2032.3,0.001]
[1773183737182,3.00297498,2032.6,2032.3,0.001]
[1773183739093,1.22997498,2032.6,2032.3,0.001]
[1773183739302,1.774,2032.6,2032.3,0.001]
[1773183744661,0.48644094,2032.8,2032.3,0.48239477]
[1773183744840,1.774,2032.7,2032.3,0.48239477]
[1773183745038,2.25844094,2032.7,2032.3,0.48239477]
[1773183745840,2.25844094,2032.7,2032.5,0.001]
[1773183746452,0.002,2032.6,2032.5,0.001]
[1773183747562,1.23195178,2032.6,2032.5,0.001]
[1773183753772,1.71639272,2032.6,2032.2,0.48239477]
[1773183757565,0.002,2032.6,2032.3,0.48139477]
[1773183758239,1.71640942,2032.6,2032.2,1.23117357]
[1773183758468,1.71640942,2032.6,2032.0,0.001]
[1773183758469,0.48444094,2032.5,2032.0,0.001]
[1773183758840,0.48444094,2032.5,2032.1,0.48139477]
[1773183759040,0.002,2032.6,2032.1,0.48139477]
[1773183759952,0.002,2032.6,2032.4,0.001]
[1773183760748,0.002,2032.6,2032.4,2.797e-05]
[1773183761656,0.002,2032.6,2032.4,0.48142274]
[1773183762566,0.48644094,2032.6,2032.4,2.797e-05]
[1773183764568,1.71644957,2032.6,2032.2,0.48239477]
[1773183765447,2.42163435,2033.0,2032.4,0.48139477]
[1773183765448,0.48444094,2033.0,2032.4,0.48139477]
[1773183765649,2.25044094,2032.8,2032.4,0.48139477]
[1773183766870,2.25044094,2032.8,2032.4,1.71142716]
[1773183767073,3.48027875,2032.8,2032.4,1.71142716]
[1773183767473,2.25044094,2032.8,2032.4,1.71142716]
[1773183767974,3.48027337,2032.8,2032.4,1.71142716]
[1773183768173,2.98181942,2032.9,2032.5,0.49384718]
[1773183769178,3.47210057,2032.9,2032.5,0.49384718]
[1773183771875,0.46932684,2032.8,2032.5,0.49384718]
[1773183773174,1.22981942,2032.9,2032.5,1.23001055]
[1773183773379,2.98981942,2032.9,2032.6,0.47913537]
[1773183774078,2.98981942,2032.9,2032.6,0.48013537]
[1773183774380,0.002,2032.7,2032.6,0.48013537]
[1773183775667,0.002,2032.7,2032.6,0.001]
[1773183780604,0.47132684,2032.7,2032.4,0.001]
[1773183781860,1.69927862,2032.6,2032.4,0.001]
[1773183782470,0.46932684,2032.5,2032.2,0.001]
[1773183782660,0.46932684,2032.3,2032.0,0.001]
[1773183783082,1.70126665,2032.7,2032.1,0.47913537]
[1773183783286,2.23632684,2032.6,2032.1,0.47913537]
[1773183783861,1.70125341,2032.7,2032.3,0.47913537]
[1773183784094,1.23192657,2032.7,2032.3,0.47913537]
[1773183788486,1.70125341,2032.7,2032.3,0.47913537]
[1773183788696,1.70125341,2032.7,2032.4,0.47913537]
[1773183788880,1.70125341,2032.7,2032.5,0.001]
[1773183789082,1.70125341,2032.7,2032.5,3.52e-06]
[1773183790291,0.47132684,2032.7,2032.5,3.52e-06]
[1773183793905,1.70122515,2032.7,2032.5,3.52e-06]
[1773183794193,0.47132684,2032.7,2032.5,3.52e-06]
[1773183794583,1.7012209,2032.7,2032.5,3.52e-06]
[1773183794780,1.7012209,2032.7,2032.0,0.001]
[1773183794781,0.46932684,2032.6,2032.0,0.001]
[1773183794993,2.24032684,2032.6,2032.1,0.22288133]
[1773183795168,2.24032684,2032.6,2032.0,0.001]
[1773183795169,0.46932684,2032.5,2032.0,0.001]
[1773183797171,0.46932684,2032.2,2031.0,1.23191133]
[1773183797475,0.46932684,2032.2,2031.0,0.001]
[1773183797675,0.49999999,2031.9,2031.0,1.23191023]
[1773183797876,0.49999999,2031.7,2031.0,1.23191023]
[1773183798075,0.49999999,2031.7,2031.0,0.001]
[1773183798300,0.49999999,2031.7,2031.0,1.23191992]
[1773183799104,0.49999999,2031.5,2031.0,0.001]
[1773183799509,1.7303755,2031.9,2031.0,0.001]
[1773183800214,0.49999999,2031.8,2031.0,0.001]
[1773183801297,1.73044817,2031.8,2031.0,1.23192072]
[1773183801881,1.73044817,2031.8,2031.7,0.001]
[1773183803006,0.49999999,2031.8,2031.7,0.001]
[1773183803592,1.73043605,2031.8,2031.7,0.001]
[1773183803792,0.49999999,2031.8,2031.7,0.001]
[1773183804195,1.73043605,2031.8,2031.7,0.001]
[1773183808890,0.49999999,2031.8,2031.7,0.001]
[1773183809124,0.49999999,2032.3,2031.7,0.001]
[1773183810118,1.73019386,2032.2,2031.7,1.23149662]
[1773183810292,0.49999999,2032.2,2031.7,1.23149662]
[1773183810903,0.49999999,2032.2,2031.7,0.001]